[Event "Almaty Open 2018"]
[Site "Almaty"]
[Date "2018.10.17"]
[Round "3"]
[White "Utegaliyev, Azamat"]
[Black "Moisseyenko, Ilya"]
[Result "1-0"]
[ECO "B23"]
[WhiteElo "2517"]
[BlackElo "2300"]
[Annotator "ChessBase"]
[PlyCount "105"]
[EventDate "2018.10.16"]
[EventType "swiss"]
[EventCountry "KAZ"]
[SourceTitle "playchess.com"]
[Source "ChessBase"]
[SourceQuality "1"]
[TimeControl "5400+30"]

1. e4 {[%emt 0:09:14]} c5 {[%emt 0:00:00]} 2. Nc3 {[%emt 0:00:11]} d6 {[%emt 0:00:00]} 3. g3 {[%emt 0:03:14]} Nc6 {[%emt 0:00:00]} 4. Bg2 {[%emt 0:00:04]} g6 {[%emt 0:00:00]} 5. Nge2 {[%emt 0:00:09]} Bg7 {[%emt 0:00:00]} 6. d3 {[%emt 0:00:06]} e6 {[%emt 0:00:14]} 7. O-O {[%emt 0:00:06]} Nge7 {[%emt 0:00:03]} 8. Be3 {[%emt 0:01:39]} Nd4 {[%emt 0:01:37]} 9. Qd2 {[%emt 0:00:22]} O-O {[%emt 0:00:10]} 10. Nc1 {[%emt 0:00:40]} Nec6 {[%emt 0:06:06]} 11. Nd1 {[%emt 0:03:53]} Ne5 {[%emt 0:01:31]} 12. f4 {[%emt 0:00:16]} Ng4 {[%emt 0:00:18]} 13. c3 {[%emt 0:00:04]} Nc6 {[%emt 0:00:21]} 14. Ne2 {[%emt 0:00:22]} Bd7 {[%emt 0:01:42]} 15. h3 {[%emt 0:00:54]} Nxe3 {[%emt 0:00:06]} 16. Nxe3 {[%emt 0:00:03]} f5 {[%emt 0:09:31]} 17. Rad1 {[%emt 0:01:47]} Kh8 {[%emt 0:06:35]} 18. exf5 {[%emt 0:10:53]} gxf5 {[%emt 0:02:02]} 19. d4 {[%emt 0:01:05]} cxd4 {[%emt 0:00:31]} 20. Nxd4 {[%emt 0:03:41]} Nxd4 {[%emt 0:00:22]} 21. cxd4 {[%emt 0:00:02]} d5 {[%emt 0:00:32]} 22. Kh2 {[%emt 0:02:00]} Rc8 {[%emt 0:04:36]} 23. Rf2 {[%emt 0:03:23]} Ba4 {[%emt 0:06:57]} 24. b3 {[%emt 0:01:22]} Be8 {[%emt 0:00:17]} 25. Nc2 {[%emt 0:03:47]} Bh5 {[%emt 0:08:39]} 26. Bf3 {[%emt 0:04:46]} Bxf3 {[%emt 0:00:06]} 27. Rxf3 {[%emt 0:00:01]} Qb6 {[%emt 0:00:54]} 28. Rd3 {[%emt 0:00:41]} Rc6 {[%emt 0:00:35]} 29. Ne1 {[%emt 0:00:53]} Rfc8 {[%emt 0:00:16]} 30. Qe3 {[%emt 0:03:02]} h6 {[%emt 0:04:12]} 31. g4 {[%emt 0:02:03]} fxg4 {[%emt 0:01:56]} 32. hxg4 {[%emt 0:00:13]} Qc7 {[%emt 0:01:06]} 33. Kg3 {[%emt 0:00:23]} b5 {[%emt 0:10:13]} 34. b4 {[%emt 0:11:36]} a5 {[%emt 0:00:57]} 35. bxa5 {[%emt 0:01:27]} b4 {[%emt 0:01:30]} 36. a3 {[%emt 0:00:41]} Qxa5 {[%emt 0:01:10]} 37. axb4 {[%emt 0:00:13]} Qxb4 {[%emt 0:00:10]} 38. Nf3 {[%emt 0:00:20]} Qb2 {[%emt 0:08:24]} 39. R3d2 {[%emt 0:08:01]} Qc3 {[%emt 0:00:47]} 40. Rd3 {[%emt 0:04:22]} Qb2 {[%emt 0:00:51]} 41. R1d2 {[%emt 0:00:30]} Qc1 {[%emt 0:01:25]} 42. Re2 {[%emt 0:00:22]} Qa1 {[%emt 0:01:29]} 43. g5 {[%emt 0:09:36]} Rf8 {[%emt 0:20:36]} 44. Rh2 {[%emt 0:06:57]} Rc1 {[%emt 0:01:51]} 45. Ra3 {[%emt 0:02:21]} Qb1 {[%emt 0:00:12]} 46. Rb3 {[%emt 0:00:01]} Qa1 {[%emt 0:00:16]} 47. Rb7 {[%emt 0:00:12]} Rh1 {[%emt 0:00:51]} 48. Qxe6 {[%emt 0:03:49]} Rxh2 {[%emt 0:00:16]} 49. Qg6 {[%emt 0:00:20]} Rg8 {[%emt 0:00:55]} 50. Kxh2 {[%emt 0:00:10]} Qf1 {[%emt 0:00:20]} 51. Kg3 {[%emt 0:00:19]} Qh1 {[%emt 0:00:14]} 52. Rb1 {[%emt 0:00:28]} Bf8 {[%emt 0:01:37]} 53. Qxg8+ {[%emt 0:00:07]} 1-0

[Event "Almaty Open 2018"]
[Site "Almaty"]
[Date "2018.10.17"]
[Round "3"]
[White "Hamitevici, Vladimir"]
[Black "Mezentsev, Ivan"]
[Result "1/2-1/2"]
[ECO "D11"]
[WhiteElo "2505"]
[BlackElo "2270"]
[Annotator "ChessBase"]
[PlyCount "120"]
[EventDate "2018.10.16"]
[EventType "swiss"]
[EventCountry "KAZ"]
[SourceTitle "playchess.com"]
[Source "ChessBase"]
[SourceQuality "1"]
[TimeControl "5400+30"]

1. d4 {[%emt 0:02:53]} d5 {[%emt 0:02:03]} 2. c4 {[%emt 0:00:26]} c6 {[%emt 0:00:04]} 3. Nf3 {[%emt 0:00:46]} Nf6 {[%emt 0:00:44]} 4. Qb3 {[%emt 0:00:34]} a6 {[%emt 0:03:36]} 5. Nc3 {[%emt 0:01:31]} e6 {[%emt 0:09:04]} 6. g3 {[%emt 0:11:28]} b5 {[%emt 0:10:34]} 7. c5 {[%emt 0:00:54]} a5 {[%emt 0:00:46]} 8. Bg2 {[%emt 0:03:10]} Be7 {[%emt 0:02:05]} 9. O-O {[%emt 0:03:09]} O-O {[%emt 0:01:08]} 10. Qc2 {[%emt 0:02:08]} Re8 {[%emt 0:08:51]} 11. a3 {[%emt 0:04:27]} Na6 {[%emt 0:09:18]} 12. Ne5 {[%emt 0:00:50]} Bb7 {[%emt 0:02:21]} 13. f4 {[%emt 0:00:20]} g6 {[%emt 0:03:43]} 14. Bd2 {[%emt 0:04:38]} Bf8 {[%emt 0:01:17]} 15. g4 {[%emt 0:04:31]} Nd7 {[%emt 0:03:02]} 16. g5 {[%emt 0:00:31]} Bg7 {[%emt 0:02:11]} 17. h4 {[%emt 0:01:38]} f6 {[%emt 0:03:25]} 18. gxf6 {[%emt 0:03:00]} Bxf6 {[%emt 0:02:03]} 19. h5 {[%emt 0:00:50]} gxh5 {[%emt 0:01:16]} 20. e3 {[%emt 0:01:35]} Re7 {[%emt 0:05:26]} 21. Bh3 {[%emt 0:07:01]} Kh8 {[%emt 0:01:31]} 22. Ne2 {[%emt 0:03:52]} h4 {[%emt 0:06:58]} 23. Kh1 {[%emt 0:01:27]} Nc7 {[%emt 0:00:27]} 24. Rg1 {[%emt 0:01:05]} Qf8 {[%emt 0:00:54]} 25. Nc1 {[%emt 0:11:31]} Rg7 {[%emt 0:10:31]} 26. Ncd3 {[%emt 0:00:29]} Qe7 {[%emt 0:00:11]} 27. Rxg7 {[%emt 0:00:40]} Bxg7 {[%emt 0:00:14]} 28. Be1 {[%emt 0:03:10]} Nxe5 {[%emt 0:01:19]} 29. Nxe5 {[%emt 0:03:49]} Bf6 {[%emt 0:01:33]} 30. Qe2 {[%emt 0:02:53]} Rg8 {[%emt 0:01:17]} 31. Qh5 {[%emt 0:01:46]} Rg7 {[%emt 0:02:48]} 32. Nf3 {[%emt 0:09:39]} Bc8 {[%emt 0:00:53]} 33. Bxh4 {[%emt 0:04:28]} Bxh4 {[%emt 0:01:04]} 34. Nxh4 {[%emt 0:00:08]} Bd7 {[%emt 0:00:52]} 35. Rg1 {[%emt 0:00:31]} Rxg1+ {[%emt 0:01:05]} 36. Kxg1 {[%emt 0:00:02]} Qg7+ {[%emt 0:00:11]} 37. Kf2 {[%emt 0:02:37]} Ne8 {[%emt 0:02:32]} 38. Qe5 {[%emt 0:03:53]} Nf6 {[%emt 0:00:54]} 39. Kf1 {[%emt 0:00:20]} Qh6 {[%emt 0:00:38]} 40. Qg5 {[%emt 0:00:25]} Qxg5 {[%emt 0:00:33]} 41. fxg5 {[%emt 0:00:02]} Ne4 {[%emt 0:00:15]} 42. Nf3 {[%emt 0:00:59]} Kg7 {[%emt 0:00:30]} 43. Ke1 {[%emt 0:00:08]} Kf7 {[%emt 0:00:47]} 44. Ne5+ {[%emt 0:01:09]} Ke7 {[%emt 0:00:05]} 45. g6 {[%emt 0:00:04]} hxg6 {[%emt 0:00:22]} 46. Nxg6+ {[%emt 0:00:01]} Kf6 {[%emt 0:00:37]} 47. Ne5 {[%emt 0:00:02]} Be8 {[%emt 0:00:33]} 48. Bg2 {[%emt 0:00:57]} Ng5 {[%emt 0:00:16]} 49. Kf2 {[%emt 0:00:45]} Nf7 {[%emt 0:00:22]} 50. Nf3 {[%emt 0:00:51]} e5 {[%emt 0:00:39]} 51. Bh3 {[%emt 0:00:37]} exd4 {[%emt 0:00:28]} 52. exd4 {[%emt 0:00:12]} Ke7 {[%emt 0:00:28]} 53. Bg4 {[%emt 0:01:01]} Nh6 {[%emt 0:00:16]} 54. Ne5 {[%emt 0:00:14]} Nf7 {[%emt 0:00:50]} 55. Nxf7 {[%emt 0:00:24]} Bxf7 {[%emt 0:00:09]} 56. Kg3 {[%emt 0:00:08]} Bg6 {[%emt 0:00:42]} 57. Kf4 {[%emt 0:00:34]} Kd8 {[%emt 0:00:10]} 58. Ke5 {[%emt 0:01:00]} Kc7 {[%emt 0:00:04]} 59. Bf3 {[%emt 0:00:41]} Bd3 {[%emt 0:00:36]} 60. b4 {[%emt 0:00:19]} axb4 {[%emt 0:00:08] Ke4} 1/2-1/2

[Event "Almaty Open 2018"]
[Site "Almaty"]
[Date "2018.10.17"]
[Round "3"]
[White "Khusenkhojaev, Muhammad"]
[Black "Khegay, Dmitriy"]
[Result "1/2-1/2"]
[ECO "A06"]
[WhiteElo "2443"]
[BlackElo "2499"]
[Annotator "ChessBase"]
[PlyCount "91"]
[EventDate "2018.10.16"]
[EventType "swiss"]
[EventCountry "KAZ"]
[SourceTitle "playchess.com"]
[Source "ChessBase"]
[SourceQuality "1"]
[TimeControl "5400+30"]

1. Nf3 {[%emt 0:07:18]} d5 {[%emt 0:00:00]} 2. d4 {[%emt 0:00:09]} c6 {[%emt 0:00:00]} 3. c4 {[%emt 0:00:05]} dxc4 {[%emt 0:00:00]} 4. e3 {[%emt 0:00:05]} Be6 {[%emt 0:00:00]} 5. Nc3 {[%emt 0:01:04]} b5 {[%emt 0:00:09]} 6. a4 {[%emt 0:00:57]} b4 {[%emt 0:00:11]} 7. Ne4 {[%emt 0:01:45]} Bd5 {[%emt 0:00:11]} 8. Ned2 {[%emt 0:01:02]} c3 {[%emt 0:03:13]} 9. bxc3 {[%emt 0:00:09]} bxc3 {[%emt 0:00:04]} 10. Nb1 {[%emt 0:00:08]} Qa5 {[%emt 0:00:58]} 11. Qc2 {[%emt 0:00:13]} Bxf3 {[%emt 0:01:00]} 12. gxf3 {[%emt 0:00:10]} e5 {[%emt 0:00:09]} 13. dxe5 {[%emt 0:01:47]} Qxe5 {[%emt 0:00:10]} 14. Ba3 {[%emt 0:02:20]} Bxa3 {[%emt 0:01:10]} 15. Rxa3 {[%emt 0:00:06]} Nf6 {[%emt 0:00:31]} 16. Rxc3 {[%emt 0:04:52]} O-O {[%emt 0:00:58]} 17. Bg2 {[%emt 0:04:04]} Na6 {[%emt 0:03:07]} 18. f4 {[%emt 0:04:47]} Qe7 {[%emt 0:00:39]} 19. O-O {[%emt 0:01:16]} Nb4 {[%emt 0:00:39]} 20. Qf5 {[%emt 0:01:12]} Nfd5 {[%emt 0:04:29]} 21. Rc4 {[%emt 0:00:17]} a5 {[%emt 0:06:30]} 22. Nc3 {[%emt 0:00:33]} g6 {[%emt 0:00:24]} 23. Qh3 {[%emt 0:05:06]} Nb6 {[%emt 0:01:31]} 24. Rd4 {[%emt 0:03:25]} Rad8 {[%emt 0:02:13]} 25. Rxd8 {[%emt 0:02:36]} Rxd8 {[%emt 0:00:07]} 26. f5 {[%emt 0:00:07]} N4d5 {[%emt 0:14:25]} 27. fxg6 {[%emt 0:02:03]} hxg6 {[%emt 0:00:14]} 28. Nxd5 {[%emt 0:00:43]} cxd5 {[%emt 0:00:08]} 29. Qg4 {[%emt 0:23:19]} d4 {[%emt 0:00:06]} 30. exd4 {[%emt 0:04:30]} Nxa4 {[%emt 0:00:05]} 31. d5 {[%emt 0:01:45]} Nb6 {[%emt 0:05:33]} 32. Qd4 {[%emt 0:01:19]} Rd6 {[%emt 0:05:09]} 33. Rb1 {[%emt 0:03:38]} Qf6 {[%emt 0:00:05]} 34. Qxf6 {[%emt 0:00:48]} Rxf6 {[%emt 0:00:05]} 35. Rb5 {[%emt 0:00:12]} a4 {[%emt 0:00:24]} 36. Ra5 {[%emt 0:00:06]} Rf4 {[%emt 0:02:29]} 37. Ra6 {[%emt 0:05:34]} Rb4 {[%emt 0:04:03]} 38. d6 {[%emt 0:00:44]} Rb1+ {[%emt 0:00:34]} 39. Bf1 {[%emt 0:00:08]} Kf8 {[%emt 0:08:30]} 40. Kg2 {[%emt 0:00:26]} Ke8 {[%emt 0:00:28]} 41. Ra7 {[%emt 0:00:25]} Rb4 {[%emt 0:00:42]} 42. Be2 {[%emt 0:00:36]} Kd8 {[%emt 0:01:54]} 43. Bf3 {[%emt 0:01:25]} Nc8 {[%emt 0:01:48]} 44. Ra6 {[%emt 0:01:02]} Rd4 {[%emt 0:00:46]} 45. d7 {[%emt 0:02:34]} Kxd7 {[%emt 0:00:05]} 46. Bc6+ {[%emt 0:00:09]} 1/2-1/2

[Event "Almaty Open 2018"]
[Site "Almaty"]
[Date "2018.10.17"]
[Round "3"]
[White "Askarov, Bakhtiyar"]
[Black "Igambergenov, Alibek"]
[Result "0-1"]
[ECO "D79"]
[WhiteElo "2428"]
[BlackElo "2253"]
[Annotator "NA"]
[PlyCount "76"]
[EventDate "2018.10.16"]
[EventType "swiss"]
[EventCountry "KAZ"]
[SourceTitle "playchess.com"]
[Source "ChessBase"]
[SourceQuality "1"]
[TimeControl "5400+30"]

1. d4 {[%emt 0:00:00]} Nf6 {[%emt 0:10:01]} 2. Nf3 {[%emt 0:00:00]} g6 {[%emt 0:01:35]} 3. g3 {[%emt 0:02:00]} Bg7 {[%emt 0:03:20]} 4. Bg2 {[%emt 0:00:06]} O-O {[%emt 0:00:08]} 5. O-O {[%emt 0:00:03]} d5 {[%emt 0:00:04]} 6. c4 {[%emt 0:00:05]} c6 {[%emt 0:00:04]} 7. cxd5 {[%emt 0:01:24]} cxd5 {[%emt 0:00:05]} 8. Nc3 {[%emt 0:00:03]} Ne4 {[%emt 0:05:35]} 9. e3 {[%emt 0:14:53]} Nxc3 {[%emt 0:14:00] D79: Fianchetto Grünfeld: Symmetrical Variation (6 0-0 c6 7 cxd5 cxd5)} (9... Nc6 10. Nd2 Nf6 11. Nb3 b6 12. Re1 Bb7 13. Bd2 e6 14. Nc1 {½-½ (14) Berkes,F (2687)-Swiercz,D (2633) Denizli 2013}) 10. bxc3 {[%emt 0:01:24]} Nc6 {[%emt 0:00:03]} 11. Nd2 {[%emt 0:01:17] LiveBook: 29 Partien} Be6 {[%emt 0:04:25]} 12. e4 {[%emt 0:06:27]} dxe4 {[%emt 0:01:20]} 13. Nxe4 {[%emt 0:00:36]} Bd5 $146 {[%emt 0:01:32]} ({Predecessor:} 13... Qa5 14. Bd2 Bc4 15. Re1 Rac8 16. Nc5 b6 17. Nb3 {0-1 (69) Barpiyeva,G (2111)-Jussupow,N (2158) Germany 2012}) 14. Re1 {[%emt 0:01:14]} Na5 {[%emt 0:05:55]} 15. Bh3 {[%emt 0:06:50]} b6 {[%emt 0:06:26]} 16. Qe2 {[%emt 0:12:14]} Re8 {[%emt 0:01:57]} 17. Bf4 {[%emt 0:00:53]} Bb7 {[%emt 0:02:47]} 18. Rad1 {[%emt 0:02:48]} Qd5 {[%emt 0:02:47]} 19. Bg2 {[%emt 0:00:58]} Kf8 {[%emt 0:01:16]} 20. Bf3 {[%emt 0:00:49]} Qc4 {[%emt 0:05:29]} 21. Qb2 {[%emt 0:09:42]} Rac8 $11 {[%emt 0:02:20]} 22. Rc1 {[%emt 0:00:32]} Bd5 {[%emt 0:01:50]} 23. Be2 {[%emt 0:09:36]} Qxa2 {[%emt 0:02:33]} 24. Qxa2 {[%emt 0:00:06]} Bxa2 {[%emt 0:00:03]} 25. Ba6 {[%emt 0:00:08]} Ra8 {[%emt 0:01:27]} 26. Nd2 {[%emt 0:00:07]} Bd5 {[%emt 0:02:00]} 27. c4 {[%emt 0:04:10]} Bb7 {[%emt 0:00:32]} 28. Bxb7 {[%emt 0:00:21]} Nxb7 {[%emt 0:00:04]} 29. Nb3 {[%emt 0:02:13]} a5 {[%emt 0:03:20]} 30. c5 {[%emt 0:00:28]} a4 {[%emt 0:00:09]} 31. Nd2 {[%emt 0:01:20]} bxc5 {[%emt 0:07:38]} 32. dxc5 {[%emt 0:00:06]} Rec8 {[%emt 0:01:17]} 33. Be3 {[%emt 0:06:56]} Na5 {[%emt 0:01:17]} 34. Nc4 {[%emt 0:02:18]} Nxc4 {[%emt 0:00:48]} 35. Rxc4 {[%emt 0:00:07]} a3 {[%emt 0:00:07]} 36. Bd4 {[%emt 0:00:04]} Bxd4 {[%emt 0:00:21]} 37. Rxd4 {[%emt 0:00:07]} Rxc5 {[%emt 0:00:04]} 38. Ra1 {[%emt 0:00:10]} Rc2 {[%emt 0:00:29]} 0-1

[Event "Almaty Open 2018"]
[Site "Almaty"]
[Date "2018.10.17"]
[Round "3"]
[White "Serikbay, Chingiz"]
[Black "Mirzoev, Azer"]
[Result "0-1"]
[ECO "A07"]
[WhiteElo "2284"]
[BlackElo "2508"]
[Annotator "ChessBase"]
[PlyCount "118"]
[EventDate "2018.10.16"]
[EventType "swiss"]
[EventCountry "KAZ"]
[SourceTitle "playchess.com"]
[Source "ChessBase"]
[SourceQuality "1"]
[TimeControl "5400+30"]

1. Nf3 {[%emt 0:05:25]} d5 {[%emt 0:00:50]} 2. g3 {[%emt 0:00:42]} Nf6 {[%emt 0:00:09]} 3. Bg2 {[%emt 0:00:04]} c6 {[%emt 0:00:15]} 4. O-O {[%emt 0:00:05]} Bg4 {[%emt 0:00:18]} 5. d4 {[%emt 0:00:20]} Nbd7 {[%emt 0:00:13]} 6. h3 {[%emt 0:01:31]} Bh5 {[%emt 0:04:31]} 7. c4 {[%emt 0:02:07]} e6 {[%emt 0:00:05]} 8. Nc3 {[%emt 0:02:26]} Be7 {[%emt 0:00:28]} 9. b3 {[%emt 0:04:18]} h6 {[%emt 0:00:21]} 10. Bb2 {[%emt 0:00:34]} O-O {[%emt 0:00:08]} 11. Nd2 {[%emt 0:06:46]} Qb6 {[%emt 0:02:50]} 12. c5 {[%emt 0:02:40]} Qc7 {[%emt 0:00:12]} 13. b4 {[%emt 0:03:22]} b6 {[%emt 0:01:50]} 14. Nb3 {[%emt 0:04:12]} Rfb8 {[%emt 0:02:19]} 15. Bc1 {[%emt 0:10:43]} bxc5 {[%emt 0:06:15]} 16. Bf4 {[%emt 0:00:29]} Bd6 {[%emt 0:24:38]} 17. Bxd6 {[%emt 0:00:06]} Qxd6 {[%emt 0:00:04]} 18. bxc5 {[%emt 0:00:04]} Qc7 {[%emt 0:00:04]} 19. f4 {[%emt 0:09:38]} a5 {[%emt 0:03:02]} 20. Nc1 {[%emt 0:03:03]} Bg6 {[%emt 0:05:54]} 21. Nd3 {[%emt 0:01:48]} Ne4 {[%emt 0:00:49]} 22. Bxe4 {[%emt 0:05:42]} Bxe4 {[%emt 0:00:37]} 23. Qd2 {[%emt 0:02:46]} Nf6 {[%emt 0:04:07]} 24. Rab1 {[%emt 0:02:50]} Bf5 {[%emt 0:00:51]} 25. Kh2 {[%emt 0:07:16]} Ne4 {[%emt 0:00:57]} 26. Nxe4 {[%emt 0:00:37]} Bxe4 {[%emt 0:00:07]} 27. Qc2 {[%emt 0:02:29]} Rb4 {[%emt 0:14:10]} 28. Rxb4 {[%emt 0:00:23]} axb4 {[%emt 0:00:06]} 29. Rb1 {[%emt 0:00:18]} Qa5 {[%emt 0:02:16]} 30. Rb2 {[%emt 0:01:20]} Qa3 {[%emt 0:05:20]} 31. Qd2 {[%emt 0:02:06]} Bxd3 {[%emt 0:00:40]} 32. exd3 {[%emt 0:00:02]} Ra4 {[%emt 0:02:26]} 33. Kg2 {[%emt 0:03:10]} Qc3 {[%emt 0:06:27]} 34. Qxc3 {[%emt 0:00:36]} bxc3 {[%emt 0:00:04]} 35. Rc2 {[%emt 0:00:02]} Ra3 {[%emt 0:00:34]} 36. Kf3 {[%emt 0:03:24]} h5 {[%emt 0:00:49]} 37. f5 {[%emt 0:06:46]} exf5 {[%emt 0:00:46]} 38. Kf4 {[%emt 0:00:02]} f6 {[%emt 0:00:24]} 39. Kxf5 {[%emt 0:00:03]} Kf7 {[%emt 0:00:11]} 40. Kf4 {[%emt 0:01:27]} g6 {[%emt 0:00:35]} 41. h4 {[%emt 0:01:38]} Ke6 {[%emt 0:00:13]} 42. Re2+ {[%emt 0:00:44]} Kf7 {[%emt 0:01:27]} 43. Rc2 {[%emt 0:00:02]} Kg7 {[%emt 0:00:19]} 44. Kf3 {[%emt 0:03:58]} g5 {[%emt 0:01:14]} 45. g4 {[%emt 0:00:16]} gxh4 {[%emt 0:00:48]} 46. gxh5 {[%emt 0:00:05]} Kh6 {[%emt 0:00:17]} 47. Kg4 {[%emt 0:00:28]} Ra4 {[%emt 0:00:06]} 48. Rxc3 {[%emt 0:01:45]} Rxd4+ {[%emt 0:00:07]} 49. Kf5 {[%emt 0:00:57]} h3 {[%emt 0:00:52]} 50. Kxf6 {[%emt 0:00:31]} Kxh5 {[%emt 0:09:30]} 51. Ke5 {[%emt 0:00:49]} h2 {[%emt 0:02:08]} 52. Rc1 {[%emt 0:00:00]} Rxd3 {[%emt 0:00:17]} 53. Kd6 {[%emt 0:02:58]} Kg4 {[%emt 0:00:26]} 54. a4 {[%emt 0:00:15]} d4 {[%emt 0:00:19]} 55. Kxc6 {[%emt 0:00:44]} Rh3 {[%emt 0:00:44]} 56. Rh1 {[%emt 0:00:36]} Kf3 {[%emt 0:00:15]} 57. Kb5 {[%emt 0:00:30]} d3 {[%emt 0:00:17]} 58. c6 {[%emt 0:00:08]} Kg2 {[%emt 0:00:05]} 59. c7 {[%emt 0:00:46]} Rh8 0-1

[Event "Almaty Open 2018"]
[Site "Almaty"]
[Date "2018.10.20"]
[Round "6"]
[White "Saiyn, Zhanat"]
[Black "Kekelidze, Mikheil"]
[Result "1/2-1/2"]
[ECO "D01"]
[WhiteElo "2370"]
[BlackElo "2360"]
[Annotator "NA"]
[PlyCount "116"]
[EventDate "2018.10.16"]
[EventType "swiss"]
[EventCountry "KAZ"]
[SourceTitle "playchess.com"]
[Source "ChessBase"]
[SourceQuality "1"]
[TimeControl "5400+30"]

{[%evp 16,101,17,16,0,4,32767,0,32767,0,32767,32767,32767,32767,32767,32767,32767,32767,32767,-46,13,-46,-28,-26,-28,-30,-16,-34,-3,-26,-15,-37,-12,-19,-9,-13,-8,-11,-10,-15,0,0,0,-26,0,-29,32767,-31,-45,-37,-23,-29,-24,-18,-22,-14,-14,-44,0,0,0,-8,-8,0,32767,32767,0,32767,32767,32767,-8,-8,-8,0,0,0,0,0,0,0,0,0,32767,0,0,32767,32767,0]} 1. d4 {[%emt 0:04:39]} Nf6 {[%emt 0:00:00]} 2. Nc3 {[%emt 0:00:16]} d5 {[%emt 0:00:02]} 3. Bg5 {[%emt 0:00:06]} Nbd7 {[%emt 0:00:16]} 4. Nf3 {[%emt 0:00:14]} c6 {[%emt 0:01:46]} 5. Qd3 {[%emt 0:00:26]} g6 {[%emt 0:03:52]} 6. e4 {[%emt 0:00:43] D01: Damenbauernspiele (Richter-Weressow)} dxe4 {[%emt 0:00:20]} 7. Nxe4 {[%emt 0:00:06]} Bg7 {[%emt 0:00:18]} 8. Be2 {[%emt 0:01:27]} Nxe4 {[%emt 0:05:39]} 9. Qxe4 {[%emt 0:00:05]} Nf6 {[%emt 0:00:07]} 10. Qd3 {[%emt 0:01:17]} (10. Qe3 O-O 11. O-O h6 12. Bh4 Qb6 13. Bc4 g5 {0-1 (67) Cubas,J (2473)-Matsuura,E (2469) Rio Branco 2017}) 10... Bf5 {[%emt 0:01:18]} 11. Qb3 {[%emt 0:00:15]} Qb6 $146 {[%emt 0:00:46]} ({Vorgänger:} 11... O-O 12. O-O Qc8 13. Rfe1 h6 14. Bh4 Nd5 {1-0 (32) Lopez Raygoza,L (2161)-Navarrete Garcia,A (2072) Mexico City 2014}) 12. Bc4 {[%emt 0:02:13]} Qxb3 {[%emt 0:07:42]} 13. Bxb3 {[%emt 0:00:06]} a5 {[%emt 0:00:28]} 14. a4 {[%emt 0:00:47]} Be4 {[%emt 0:03:00]} 15. O-O-O {[%emt 0:08:56]} Bxf3 {[%emt 0:00:39]} 16. gxf3 {[%emt 0:00:02]} e6 {[%emt 0:01:57]} 17. c4 {[%emt 0:06:30]} Ra6 {[%emt 0:14:32]} 18. d5 {[%emt 0:03:02]} Rb6 {[%emt 0:04:51]} 19. Rd3 $1 {[%emt 0:02:31]} cxd5 {[%emt 0:01:25]} 20. cxd5 {[%emt 0:00:06]} Nxd5 {[%emt 0:02:25]} 21. Bxd5 {[%emt 0:06:13]} exd5 {[%emt 0:04:11]} 22. Re1+ {[%emt 0:00:02]} Re6 {[%emt 0:05:17]} 23. Bd2 {[%emt 0:00:06]} O-O {[%emt 0:03:27]} 24. Rxd5 {[%emt 0:05:57]} Rc8+ {[%emt 0:00:45]} 25. Kb1 {[%emt 0:02:40]} Rb6 {[%emt 0:00:17]} 26. Rb5 {[%emt 0:02:32]} Rxb5 {[%emt 0:01:04]} 27. axb5 {[%emt 0:00:07]} Bd4 {[%emt 0:00:37]} 28. Bxa5 {[%emt 0:03:53]} Bxf2 {[%emt 0:01:03]} 29. Rd1 {[%emt 0:02:07]} h5 {[%emt 0:03:37]} 30. b6 {[%emt 0:08:39]} Rc6 {[%emt 0:00:39]} 31. Rd8+ $1 {[%emt 0:01:10]} Kh7 {[%emt 0:00:12]} 32. Bc3 {[%emt 0:03:08]} g5 {[%emt 0:03:44]} 33. Rd7 {[%emt 0:00:05]} Kg6 {[%emt 0:02:30]} 34. Rxb7 {[%emt 0:00:07]} Bxb6 {[%emt 0:01:26]} 35. h3 {[%emt 0:01:30]} f6 {[%emt 0:01:30]} 36. Re7 {[%emt 0:02:22]} Rc4 {[%emt 0:07:11]} 37. Re6 {[%emt 0:00:12]} Bd8 {[%emt 0:00:04]} 38. Rd6 {[%emt 0:00:03]} Be7 {[%emt 0:00:06]} 39. Rd4 {[%emt 0:00:03]} Rc5 {[%emt 0:03:50]} 40. Rd7 {[%emt 0:16:20]} Bf8 {[%emt 0:00:18]} 41. Rd8 {[%emt 0:00:32]} Bh6 {[%emt 0:01:11]} 42. Rd3 {[%emt 0:00:25]} Rc4 {[%emt 0:04:19]} 43. Rd4 {[%emt 0:01:10]} Rxd4 {[%emt 0:03:08]} 44. Bxd4 {[%emt 0:00:07]} f5 {[%emt 0:00:04]} 45. Kc2 {[%emt 0:07:33]} g4 {[%emt 0:02:56]} 46. fxg4 {[%emt 0:00:10]} fxg4 {[%emt 0:00:17]} 47. hxg4 {[%emt 0:00:06]} h4 {[%emt 0:01:10]} 48. Kd3 {[%emt 0:01:28]} h3 {[%emt 0:01:16]} 49. Be5 {[%emt 0:01:19]} Kg5 {[%emt 0:01:17]} 50. Ke2 {[%emt 0:00:12]} Kxg4 {[%emt 0:00:12]} 51. Kf2 $11 {[%emt 0:01:09]} Bf8 {[%emt 0:00:05]} 52. Kg1 {[%emt 0:00:11]} Kf5 {[%emt 0:00:08]} 53. Bb8 {[%emt 0:00:17]} Ke4 {[%emt 0:00:05]} 54. Kh2 {[%emt 0:00:08]} Kd3 {[%emt 0:00:04]} 55. Be5 {[%emt 0:00:13]} Kc2 {[%emt 0:00:05]} 56. Kxh3 {[%emt 0:00:05]} Kb3 {[%emt 0:00:03]} 57. Kg4 {[%emt 0:00:07]} Ba3 {[%emt 0:00:03]} 58. bxa3 {[%emt 0:00:02]} Kxa3 1/2-1/2